[Event "VIII Lorca Open-A 2019"]
[Site "Lorca"]
[Date "2019.12.30"]
[Round "9.5"]
[White "Low, Zhen Yu Cyrus"]
[Black "Klekowski, Maciej"]
[Result "0-1"]
[ECO "B46"]
[WhiteElo "2420"]
[BlackElo "2514"]
[Annotator "ChessBase"]
[PlyCount "58"]
[EventDate "2019.12.26"]
[EventType "swiss"]
[EventCountry "ESP"]
[SourceTitle "playchess.com"]
[Source "ChessBase"]
[SourceQuality "1"]
[TimeControl "5400+30"]

1. e4 {[%emt 0:00:00]} c5 {[%emt 0:00:00]} 2. Nf3 {[%emt 0:00:00]} Nc6 {[%emt 0:00:00]} 3. d4 {[%emt 0:00:00]} cxd4 {[%emt 0:00:00]} 4. Nxd4 {[%emt 0:00:00]} e6 {[%emt 0:00:04]} 5. Nc3 {[%emt 0:00:03]} a6 {[%emt 0:00:06]} 6. Nxc6 {[%emt 0:00:06]} bxc6 {[%emt 0:00:03]} 7. Bd3 {[%emt 0:00:07]} d5 {[%emt 0:00:09]} 8. O-O {[%emt 0:00:06]} Nf6 {[%emt 0:00:12]} 9. Qe2 {[%emt 0:00:06]} Be7 {[%emt 0:01:34]} 10. b3 {[%emt 0:01:02]} Qc7 {[%emt 0:02:51]} 11. Bb2 {[%emt 0:00:39]} O-O {[%emt 0:11:29]} 12. Na4 {[%emt 0:02:15]} c5 {[%emt 0:05:56]} 13. e5 {[%emt 0:08:57]} Nd7 {[%emt 0:02:41]} 14. c4 {[%emt 0:00:07]} d4 {[%emt 0:00:52]} 15. Rae1 {[%emt 0:01:39]} Bb7 {[%emt 0:09:29]} 16. f4 {[%emt 0:01:33]} g6 {[%emt 0:03:13]} 17. Bc1 {[%emt 0:05:07]} Bh4 {[%emt 0:07:01]} 18. Rd1 {[%emt 0:01:30]} Rae8 {[%emt 0:01:25]} 19. Nb2 {[%emt 0:02:34]} f5 {[%emt 0:04:31]} 20. exf6 {[%emt 0:01:59]} Nxf6 {[%emt 0:02:00]} 21. Qc2 {[%emt 0:06:23]} e5 {[%emt 0:01:25]} 22. fxe5 {[%emt 0:00:36]} Ng4 {[%emt 0:02:02]} 23. Qe2 {[%emt 0:11:56]} Bf2+ {[%emt 0:01:28]} 24. Kh1 {[%emt 0:00:08]} Bxg2+ {[%emt 0:02:03]} 25. Kxg2 {[%emt 0:00:18]} Ne3+ {[%emt 0:00:03]} 26. Bxe3 {[%emt 0:03:46]} Qb7+ {[%emt 0:00:08]} 27. Kh3 {[%emt 0:02:13]} Rf3+ {[%emt 0:00:04]} 28. Kg4 {[%emt 0:00:04]} h5+ {[%emt 0:00:05]} 29. Kg5 {[%emt 0:00:12]} Rxe5+ {[%emt 0:00:05]} 0-1

[Event "VIII Lorca Open-A 2019"]
[Site "Lorca"]
[Date "2019.12.30"]
[Round "9.7"]
[White "Lopez Martinez, Josep Manuel"]
[Black "Plaskett, H James"]
[Result "*"]
[ECO "E14"]
[WhiteElo "2561"]
[BlackElo "2419"]
[Annotator "ChessBase"]
[PlyCount "28"]
[EventDate "2019.12.26"]
[EventType "swiss"]
[EventCountry "ESP"]
[SourceTitle "playchess.com"]
[Source "ChessBase"]
[SourceQuality "1"]
[TimeControl "5400+30"]

1. d4 {[%emt 0:05:22]} d5 {[%emt 0:00:00]} 2. c4 {[%emt 0:00:32]} e6 {[%emt 0:00:00]} 3. Nf3 {[%emt 0:00:29]} Nf6 {[%emt 0:00:00]} 4. e3 {[%emt 0:00:04]} Be7 {[%emt 0:02:05]} 5. b3 {[%emt 0:00:17]} O-O {[%emt 0:00:03]} 6. Bd3 {[%emt 1:26:16]} b6 {[%emt 0:01:09]} 7. O-O {[%emt 0:00:08]} Bb7 {[%emt 0:00:02]} 8. Bb2 {[%emt 0:00:09]} Nbd7 {[%emt 0:00:09]} 9. Nc3 {[%emt 1:27:24]} c5 {[%emt 0:01:12]} 10. cxd5 {[%emt 0:00:13]} Nxd5 {[%emt 0:00:32]} 11. Nxd5 {[%emt 0:00:07]} Bxd5 {[%emt 0:00:16]} 12. Qe2 {[%emt 0:00:06]} cxd4 {[%emt 0:02:46]} 13. Nxd4 {[%emt 0:00:49]} Bf6 {[%emt 0:10:49]} 14. Bb5 {[%emt 0:12:41]} Nc5 {[%emt 0:09:22]} *

[Event "VIII Lorca Open-A 2019"]
[Site "Lorca"]
[Date "2019.12.30"]
[Round "9.7"]
[White "Maiorov, Nikita"]
[Black "Kiselev, Pavel"]
[Result "1-0"]
[ECO "E14"]
[WhiteElo "2523"]
[BlackElo "2303"]
[Annotator "RC"]
[PlyCount "73"]
[EventDate "2019.12.26"]
[EventType "swiss"]
[EventCountry "ESP"]
[SourceTitle "playchess.com"]
[Source "ChessBase"]
[SourceQuality "1"]
[TimeControl "5400+30"]

1. d4 {[%emt 0:05:22]} d5 {[%emt 0:00:00]} 2. c4 {[%emt 0:00:32]} e6 {[%emt 0:00:00]} 3. Nf3 {[%emt 0:00:29]} Nf6 {[%emt 0:00:00]} 4. e3 {[%emt 0:00:04]} Be7 {[%emt 0:02:05]} 5. b3 {[%emt 0:00:17]} O-O {[%emt 0:00:03]} 6. Bd3 {[%emt 0:00:05]} b6 {[%emt 0:01:09]} 7. O-O {[%emt 0:00:08]} Bb7 {[%emt 0:00:02]} 8. Bb2 {[%emt 0:00:09]} Nbd7 {[%emt 0:00:09]} 9. Nc3 {[%emt 0:00:04]} c5 {[%emt 0:01:12]} 10. cxd5 {[%emt 0:00:13]} Nxd5 {[%emt 0:00:32]} 11. Nxd5 {[%emt 0:00:07]} Bxd5 {[%emt 0:00:16]} 12. Qe2 {[%emt 0:00:06]} cxd4 {[%emt 0:02:46]} 13. Nxd4 {[%emt 0:00:49]} Bf6 {[%emt 0:10:49]} 14. Bb5 {[%emt 0:12:41]} Nc5 {[%emt 0:09:22]} 15. Rad1 {[%emt 0:16:04]} Qc7 {[%emt 0:09:00]} 16. b4 {[%emt 0:08:39]} a6 {[%emt 0:02:26]} 17. Bc4 {[%emt 0:04:46]} Bxc4 {[%emt 0:08:42]} 18. Qxc4 {[%emt 0:00:12]} Rfc8 {[%emt 0:00:36]} 19. bxc5 {[%emt 0:02:20]} bxc5 {[%emt 0:00:01]} 20. Nxe6 {[%emt 0:00:32]} fxe6 {[%emt 0:00:12]} 21. Bxf6 {[%emt 0:00:04]} gxf6 {[%emt 0:00:04]} 22. Qxe6+ {[%emt 0:00:22]} Qf7 {[%emt 0:00:02]} 23. Qg4+ {[%emt 0:01:51]} Qg6 {[%emt 0:00:02]} 24. Qc4+ {[%emt 0:00:10]} Qf7 {[%emt 0:00:02]} 25. Rd5 {[%emt 0:00:45]} Rab8 {[%emt 0:04:08]} 26. a3 {[%emt 0:03:17]} Rc6 {[%emt 0:00:22]} 27. Rfd1 {[%emt 0:01:55]} Qe6 {[%emt 0:00:06]} 28. h3 {[%emt 0:00:24]} Rd6 {[%emt 0:00:29]} 29. Qxc5 {[%emt 0:01:26]} Rxd5 {[%emt 0:00:08]} 30. Qxd5 {[%emt 0:00:06]} Qxd5 {[%emt 0:00:04]} 31. Rxd5 {[%emt 0:00:05]} Rb6 {[%emt 0:00:53]} 32. Kh2 {[%emt 0:00:13]} Kg7 {[%emt 0:00:02]} 33. Kg3 {[%emt 0:00:05]} Kg6 {[%emt 0:00:03]} 34. Ra5 {[%emt 0:00:09]} Rc6 {[%emt 0:00:03]} 35. f3 {[%emt 0:00:24]} Rb6 {[%emt 0:00:07]} 36. e4 {[%emt 0:00:07]} Rc6 {[%emt 0:00:11]} 37. Kg4 {[%emt 0:00:14]} 1-0

[Event "VIII Lorca Open-A 2019"]
[Site "Lorca"]
[Date "2019.12.30"]
[Round "9.8"]
[White "Maiorov, Nikita"]
[Black "Kiselev, Pavel"]
[Result "*"]
[ECO "A57"]
[WhiteElo "2523"]
[BlackElo "2303"]
[Annotator "ChessBase"]
[PlyCount "30"]
[EventDate "2019.12.26"]
[EventType "swiss"]
[EventCountry "ESP"]
[SourceTitle "playchess.com"]
[Source "ChessBase"]
[SourceQuality "1"]
[TimeControl "5400+30"]

1. d4 {[%emt 0:09:23]} c5 {[%emt 0:01:38]} 2. d5 {[%emt 0:00:32]} Nf6 {[%emt 0:00:02]} 3. c4 {[%emt 0:00:33]} b5 {[%emt 0:04:20]} 4. cxb5 {[%emt 0:00:37]} a6 {[%emt 0:00:01]} 5. e3 {[%emt 0:00:33]} axb5 {[%emt 0:03:34]} 6. Bxb5 {[%emt 0:00:25]} Qa5+ {[%emt 0:07:36]} 7. Nc3 {[%emt 0:01:16]} Ba6 {[%emt 0:00:01]} 8. Bxa6 {[%emt 0:01:29]} Nxa6 {[%emt 0:00:05]} 9. Nf3 {[%emt 0:04:21]} g6 {[%emt 0:01:10]} 10. O-O {[%emt 1:15:51]} d6 {[%emt 0:00:04]} 11. e4 {[%emt 1:15:52]} Nd7 {[%emt 0:00:07]} 12. Bf4 {[%emt 0:01:08]} Bg7 {[%emt 0:00:01]} 13. Qd2 {[%emt 0:00:49]} O-O {[%emt 0:01:18]} 14. Bh6 {[%emt 0:06:55]} Nc7 {[%emt 0:00:52]} 15. Bxg7 {[%emt 0:00:55]} Kxg7 {[%emt 0:00:01]} *

[Event "VIII Lorca Open-A 2019"]
[Site "Lorca"]
[Date "2019.12.30"]
[Round "9.9"]
[White "Holm, Kristian Stuvik"]
[Black "Merario Alarcon, Andres"]
[Result "1/2-1/2"]
[ECO "D46"]
[WhiteElo "2489"]
[BlackElo "2417"]
[Annotator "ChessBase"]
[PlyCount "38"]
[EventDate "2019.12.26"]
[EventType "swiss"]
[EventCountry "ESP"]
[SourceTitle "playchess.com"]
[Source "ChessBase"]
[SourceQuality "1"]
[TimeControl "5400+30"]

1. d4 {[%emt 0:00:00]} d5 {[%emt 0:00:00]} 2. c4 {[%emt 0:00:00]} e6 {[%emt 0:00:16]} 3. Nf3 {[%emt 0:00:00]} Nf6 {[%emt 0:00:18]} 4. Nc3 {[%emt 0:00:00]} c6 {[%emt 0:00:35]} 5. e3 {[%emt 0:03:08]} Nbd7 {[%emt 0:00:11]} 6. Qc2 {[%emt 0:00:06]} Bd6 {[%emt 0:00:07]} 7. Bd3 {[%emt 0:00:14]} O-O {[%emt 0:01:00]} 8. O-O {[%emt 0:00:06]} e5 {[%emt 0:02:48]} 9. cxd5 {[%emt 0:00:38]} cxd5 {[%emt 0:00:26]} 10. e4 {[%emt 0:01:06]} exd4 {[%emt 0:00:43]} 11. Nxd5 {[%emt 0:00:39]} Nxd5 12. exd5 {[%emt 0:00:06]} h6 {[%emt 0:03:47]} 13. Nxd4 {[%emt 0:01:06]} Qh4 {[%emt 0:00:22]} 14. Nf3 {[%emt 0:00:06]} Qh5 {[%emt 0:00:08]} 15. Bh7+ {[%emt 0:00:51]} Kh8 {[%emt 0:00:05]} 16. Qf5 {[%emt 0:00:27]} Qxf5 {[%emt 0:00:07]} 17. Bxf5 {[%emt 0:00:03]} Nf6 {[%emt 0:04:27]} 18. Bc2 {[%emt 0:00:14]} b6 {[%emt 0:03:25]} 19. Rd1 {[%emt 0:01:04]} Bb7 {[%emt 0:00:23]} 1/2-1/2

[Event "VIII Lorca Open-A 2019"]
[Site "Lorca"]
[Date "2019.12.30"]
[Round "9.10"]
[White "Villanueva, Mario"]
[Black "Pogorelov, Ruslan"]
[Result "0-1"]
[ECO "B82"]
[WhiteElo "2486"]
[BlackElo "2377"]
[Annotator "ChessBase"]
[PlyCount "63"]
[EventDate "2019.12.26"]
[EventType "swiss"]
[EventCountry "ESP"]
[SourceTitle "playchess.com"]
[Source "ChessBase"]
[SourceQuality "1"]
[TimeControl "5400+30"]

1. e4 {[%emt 0:03:38]} c5 {[%emt 0:00:00]} 2. Nf3 {[%emt 0:00:10]} e6 {[%emt 0:00:13]} 3. d4 {[%emt 0:00:59]} cxd4 {[%emt 0:00:06]} 4. Nxd4 {[%emt 0:00:04]} a6 {[%emt 0:00:05]} 5. Nc3 {[%emt 0:00:28]} Qc7 {[%emt 0:00:11]} 6. Bd3 {[%emt 0:00:07]} Nf6 {[%emt 0:00:40]} 7. f4 {[%emt 0:00:28]} d6 {[%emt 0:00:10]} 8. Be3 {[%emt 0:00:03]} Nbd7 {[%emt 0:00:27]} 9. g4 {[%emt 0:00:52]} Nc5 {[%emt 0:00:38]} 10. g5 {[%emt 0:03:10]} Nfd7 {[%emt 0:00:07]} 11. Rc1 {[%emt 0:02:44]} b5 {[%emt 0:05:25]} 12. b4 {[%emt 0:00:13]} Nxd3+ {[%emt 0:00:51]} 13. cxd3 {[%emt 0:00:06]} Qb7 {[%emt 0:02:35]} 14. f5 {[%emt 0:03:21]} Ne5 {[%emt 0:02:15]} 15. O-O {[%emt 0:05:07]} Be7 {[%emt 0:05:57]} 16. fxe6 {[%emt 0:07:33]} Bxe6 {[%emt 0:01:21]} 17. Nxe6 {[%emt 0:02:57]} fxe6 {[%emt 0:00:14]} 18. Qh5+ {[%emt 0:22:45]} g6 {[%emt 0:03:01]} 19. Qh3 {[%emt 0:02:29]} Qd7 {[%emt 0:01:50]} 20. Ne2 {[%emt 0:01:41]} Nf7 {[%emt 0:48:06]} 21. Nd4 {[%emt 0:08:39]} Nxg5 {[%emt 0:11:22]} 22. Qh6 {[%emt 0:05:01]} Nf7 {[%emt 0:04:09]} 23. Qg7 {[%emt 0:01:17]} Rf8 {[%emt 0:00:16]} 24. Qxh7 {[%emt 0:01:17]} e5 {[%emt 0:00:20]} 25. Nc6 {[%emt 0:07:38]} Rc8 {[%emt 0:03:20]} 26. Nxe7 {[%emt 0:08:25]} Rxc1 {[%emt 0:00:47]} 27. Bxc1 {[%emt 0:00:06]} Qg4+ {[%emt 0:01:15]} 28. Kh1 {[%emt 0:00:03]} Qe2 {[%emt 0:01:15]} 29. Qh3 {[%emt 0:03:01]} Kxe7 {[%emt 0:00:32]} 30. Kg1 {[%emt 0:00:27]} Rh8 {[%emt 0:06:57]} 31. Qg3 {[%emt 0:03:39]} Rh5 {[%emt 0:00:22]} 32. h4 {[%emt 0:00:23]} 0-1

[Event "VIII Lorca Open-A 2019"]
[Site "Lorca"]
[Date "2019.12.30"]
[Round "9.11"]
[White "Malovanyi, Yulian"]
[Black "Gascon Del Nogal, Jose Rafael"]
[Result "0-1"]
[ECO "B00"]
[WhiteElo "2360"]
[BlackElo "2475"]
[Annotator "ChessBase"]
[PlyCount "95"]
[EventDate "2019.12.26"]
[EventType "swiss"]
[EventCountry "ESP"]
[SourceTitle "playchess.com"]
[Source "ChessBase"]
[SourceQuality "1"]
[TimeControl "5400+30"]

1. e4 {[%emt 1:30:30]} Nc6 {[%emt 1:30:30]} 2. Nf3 {[%emt 0:00:30]} d6 {[%emt 0:00:30]} 3. d4 {[%emt 0:00:30]} Nf6 {[%emt 0:00:30]} 4. Nc3 {[%emt 0:00:30]} Bg4 {[%emt 0:00:30]} 5. Be3 {[%emt 0:00:30]} g6 {[%emt 0:00:30]} 6. Be2 {[%emt 0:00:30]} Bg7 {[%emt 0:00:30]} 7. d5 {[%emt 0:00:30]} Bxf3 {[%emt 0:00:30]} 8. gxf3 {[%emt 0:00:30]} Nb8 {[%emt 0:00:30]} 9. Qd2 {[%emt 0:00:30]} c6 {[%emt 0:00:30]} 10. O-O-O {[%emt 0:00:30]} Qa5 {[%emt 0:00:30]} 11. Kb1 {[%emt 0:00:30]} Nbd7 {[%emt 0:00:30]} 12. h4 {[%emt 0:00:30]} Rc8 {[%emt 0:00:30]} 13. Rhg1 {[%emt 0:00:30]} a6 {[%emt 0:00:30]} 14. Rg5 {[%emt 0:00:30]} h6 {[%emt 0:00:30]} 15. Rgg1 {[%emt 0:00:30]} cxd5 {[%emt 0:00:30]} 16. Nxd5 {[%emt 0:00:30]} Qxd2 {[%emt 0:00:30]} 17. Rxd2 {[%emt 0:00:30]} Nxd5 {[%emt 0:00:30]} 18. Rxd5 {[%emt 0:00:30]} h5 {[%emt 0:00:30]} 19. Rdd1 {[%emt 0:00:30]} Bf6 {[%emt 0:00:30]} 20. Rh1 {[%emt 0:00:30]} Nc5 {[%emt 0:00:30]} 21. c3 {[%emt 0:00:30]} O-O {[%emt 0:00:30]} 22. Rdg1 {[%emt 0:00:30]} Kh7 {[%emt 0:00:30]} 23. Bd1 {[%emt 0:00:30]} b5 {[%emt 0:00:30]} 24. Bc2 {[%emt 0:00:30]} Rfe8 {[%emt 0:00:30]} 25. f4 {[%emt 0:00:30]} e5 {[%emt 0:00:30]} 26. fxe5 {[%emt 0:00:30]} dxe5 {[%emt 0:00:30]} 27. Bxc5 {[%emt 0:00:30]} Rxc5 {[%emt 0:00:30]} 28. Bb3 {[%emt 0:00:30]} Rc7 {[%emt 0:00:30]} 29. Rd1 {[%emt 0:00:30]} Rd8 {[%emt 0:00:30]} 30. Rxd8 {[%emt 0:00:30]} Bxd8 {[%emt 0:00:30]} 31. Bd5 {[%emt 0:00:30]} Kg7 {[%emt 0:00:30]} 32. Kc2 {[%emt 0:00:30]} Rd7 {[%emt 0:00:30]} 33. Kd3 {[%emt 0:00:30]} Rd6 {[%emt 0:00:30]} 34. Ke2 {[%emt 0:00:30]} Rb6 {[%emt 0:00:30]} 35. Kf3 {[%emt 0:00:30]} b4 {[%emt 0:00:30]} 36. cxb4 {[%emt 0:00:30]} Rxb4 {[%emt 0:00:30]} 37. b3 {[%emt 0:00:30]} Rd4 {[%emt 0:00:30]} 38. Ke2 {[%emt 0:00:30]} Ba5 {[%emt 0:00:30]} 39. Rd1 {[%emt 0:00:30]} Rxd1 {[%emt 0:00:30]} 40. Kxd1 {[%emt 0:00:30]} Bd8 {[%emt 0:00:30]} 41. b4 {[%emt 0:00:30]} Bxh4 {[%emt 0:00:30]} 42. Ke2 {[%emt 0:00:30]} Bd8 {[%emt 0:00:30]} 43. Bb7 {[%emt 0:00:30]} a5 {[%emt 0:00:30]} 44. bxa5 {[%emt 0:00:30]} Bxa5 {[%emt 0:00:30]} 45. Bc8 {[%emt 0:00:30]} Kf6 {[%emt 0:00:30]} 46. Kf3 {[%emt 0:00:30]} Kg5 {[%emt 0:00:30]} 47. Kg3 {[%emt 0:00:30]} Be1 {[%emt 0:00:30]} 48. a4 {[%emt 0:00:30]} 0-1

[Event "VIII Lorca Open-A 2019"]
[Site "Lorca"]
[Date "2019.12.30"]
[Round "9.12"]
[White "Bobadilla Viera, Jorge Samuel"]
[Black "Peng, Li Min"]
[Result "0-1"]
[ECO "C08"]
[WhiteElo "2339"]
[BlackElo "2451"]
[Annotator "ChessBase"]
[PlyCount "60"]
[EventDate "2019.12.26"]
[EventType "swiss"]
[EventCountry "ESP"]
[SourceTitle "playchess.com"]
[Source "ChessBase"]
[SourceQuality "1"]
[TimeControl "5400+30"]

1. e4 {[%emt 0:03:03]} e6 {[%emt 0:04:58]} 2. d4 {[%emt 0:00:10]} d5 {[%emt 1:26:02]} 3. Nd2 {[%emt 0:00:12]} c5 {[%emt 0:00:00]} 4. Ngf3 {[%emt 0:00:18]} Nc6 {[%emt 0:00:00]} 5. exd5 {[%emt 0:03:23]} exd5 {[%emt 0:00:00]} 6. Be2 {[%emt 0:00:13]} Nf6 {[%emt 0:00:00]} 7. O-O {[%emt 0:00:29]} cxd4 {[%emt 0:00:00]} 8. Nb3 {[%emt 0:00:33]} Bd6 {[%emt 0:00:00]} 9. Bg5 {[%emt 0:01:43]} h6 {[%emt 0:00:00]} 10. Bh4 {[%emt 0:00:18]} O-O {[%emt 0:00:00]} 11. Nbxd4 {[%emt 0:00:23]} g5 {[%emt 0:00:00]} 12. Bg3 {[%emt 0:00:44]} Bc5 {[%emt 0:00:00]} 13. Nxc6 {[%emt 0:08:01]} bxc6 {[%emt 0:00:00]} 14. c4 {[%emt 0:06:17]} Ne4 {[%emt 0:00:00]} 15. cxd5 {[%emt 0:06:32]} cxd5 {[%emt 0:00:00]} 16. Be5 {[%emt 0:05:02]} g4 {[%emt 0:00:00]} 17. Nd2 {[%emt 0:01:35]} Nxf2 {[%emt 0:00:00]} 18. Rxf2 {[%emt 0:02:33]} Bxf2+ {[%emt 0:00:00]} 19. Kxf2 {[%emt 0:02:45]} Qb6+ {[%emt 0:00:00]} 20. Kf1 {[%emt 0:00:56]} Re8 {[%emt 0:00:00]} 21. Bc3 {[%emt 0:18:48]} Rxe2 {[%emt 0:00:00]} 22. Kxe2 {[%emt 0:00:09]} Ba6+ {[%emt 0:00:00]} 23. Nc4 {[%emt 0:00:15]} Bxc4+ {[%emt 0:00:00]} 24. Kd2 {[%emt 0:00:08]} h5 {[%emt 0:00:00]} 25. Kc2 {[%emt 0:04:52]} Re8 {[%emt 0:00:00]} 26. Qd4 {[%emt 0:00:51]} Re2+ {[%emt 0:00:00]} 27. Kd1 {[%emt 0:00:09]} Qxd4+ {[%emt 0:00:00]} 28. Bxd4 {[%emt 0:00:09]} Rxg2 {[%emt 0:00:00]} 29. b3 {[%emt 0:00:14]} Bd3 {[%emt 0:00:00]} 30. Be5 {[%emt 0:00:47]} f6 {[%emt 0:00:00]} 0-1

[Event "VIII Lorca Open-A 2019"]
[Site "Lorca"]
[Date "2019.12.30"]
[Round "9.13"]
[White "Guerra Rivera, Salvador"]
[Black "Real De Azua, Ernesto"]
[Result "0-1"]
[ECO "A15"]
[WhiteElo "2314"]
[BlackElo "2450"]
[Annotator "ChessBase"]
[PlyCount "76"]
[EventDate "2019.12.26"]
[EventType "swiss"]
[EventCountry "ESP"]
[SourceTitle "playchess.com"]
[Source "ChessBase"]
[SourceQuality "1"]
[TimeControl "5400+30"]

1. Nf3 {[%emt 0:00:00]} Nf6 {[%emt 0:01:18]} 2. g3 {[%emt 0:00:00]} b6 {[%emt 0:00:58]} 3. Bg2 {[%emt 0:00:05]} Bb7 {[%emt 0:00:05]} 4. b3 {[%emt 0:00:24]} g6 {[%emt 0:00:27]} 5. O-O {[%emt 0:00:16]} Bg7 {[%emt 0:00:21]} 6. Bb2 {[%emt 0:00:07]} O-O {[%emt 0:00:05]} 7. c4 {[%emt 0:00:08]} e6 {[%emt 0:02:28]} 8. Nc3 {[%emt 0:07:54]} d5 {[%emt 0:00:41]} 9. d4 {[%emt 0:00:55]} Ne4 {[%emt 0:17:41]} 10. Qc2 {[%emt 0:03:22]} Nxc3 {[%emt 0:05:13]} 11. Bxc3 {[%emt 0:00:17]} Nd7 {[%emt 0:00:14]} 12. cxd5 {[%emt 0:07:05]} exd5 {[%emt 0:00:32]} 13. Rac1 {[%emt 0:00:23]} Re8 {[%emt 0:02:50]} 14. e3 {[%emt 1:16:04]} a5 {[%emt 0:01:52]} 15. Rfd1 {[%emt 0:00:00]} c6 {[%emt 0:01:03]} 16. Ne1 {[%emt 0:00:00]} Qe7 {[%emt 0:09:40]} 17. Nd3 {[%emt 0:00:00]} h5 {[%emt 0:09:48]} 18. a4 {[%emt 0:00:00]} h4 {[%emt 0:02:08]} 19. Be1 {[%emt 0:00:00]} hxg3 {[%emt 0:12:20]} 20. hxg3 {[%emt 0:00:00]} Nf6 {[%emt 0:00:14]} 21. b4 {[%emt 0:00:00]} axb4 {[%emt 0:03:38]} 22. Nxb4 {[%emt 0:00:00]} Rec8 {[%emt 0:01:16]} 23. Qb3 {[%emt 0:00:00]} Ng4 {[%emt 0:11:46]} 24. Nd3 {[%emt 0:00:00]} Ba6 {[%emt 0:01:17]} 25. Qxb6 {[%emt 0:00:00]} Bc4 {[%emt 0:00:39]} 26. a5 {[%emt 0:00:00]} Bh6 {[%emt 0:02:15]} 27. Rxc4 {[%emt 0:00:00]} dxc4 {[%emt 0:00:22]} 28. Qc5 {[%emt 0:00:00]} Qe6 {[%emt 0:02:34]} 29. Nf4 {[%emt 0:00:00]} Bxf4 {[%emt 0:00:11]} 30. gxf4 {[%emt 0:00:00]} Rab8 {[%emt 0:01:57]} 31. a6 {[%emt 0:08:30]} Rb5 {[%emt 0:02:45]} 32. Qa3 {[%emt 0:00:00]} Rb3 {[%emt 0:03:13]} 33. Qa4 Rxe3 34. Qa1 {[%emt 0:00:00]} Rd3 35. Rc1 {[%emt 0:02:00]} Ra8 {[%emt 0:05:06]} 36. Bf1 {[%emt 0:00:00]} Nf6 {[%emt 0:00:30]} 37. Qa4 {[%emt 0:00:00]} Rxd4 {[%emt 0:00:27]} 38. Bg2 {[%emt 0:00:00]} Nd5 {[%emt 0:00:27]} 0-1

[Event "VIII Lorca Open-A 2019"]
[Site "Lorca"]
[Date "2019.12.30"]
[Round "9.14"]
[White "Plazuelo Pascual, Juan"]
[Black "Savitha Shri B"]
[Result "1-0"]
[ECO "D30"]
[WhiteElo "2433"]
[BlackElo "1968"]
[Annotator "NA"]
[PlyCount "65"]
[EventDate "2019.12.26"]
[EventType "swiss"]
[EventCountry "ESP"]
[SourceTitle "playchess.com"]
[Source "ChessBase"]
[SourceQuality "1"]
[TimeControl "5400+30"]

1. d4 {[%emt 1:30:30]} Nf6 {[%emt 1:30:30]} 2. c4 {[%emt 0:00:30]} e6 {[%emt 0:00:30]} 3. Nf3 {[%emt 0:00:30]} d5 {[%emt 0:00:30]} 4. e3 {[%emt 0:00:30]} c6 {[%emt 0:00:30]} 5. b3 {[%emt 0:00:30]} Bd6 {[%emt 0:00:30]} 6. Bd3 {[%emt 0:00:30]} O-O {[%emt 0:00:30]} 7. O-O {[%emt 0:00:30]} Nbd7 {[%emt 0:00:30]} 8. Bb2 {[%emt 0:00:30]} b6 {[%emt 0:00:30]} 9. Nbd2 {[%emt 0:00:30]} Bb7 {[%emt 0:00:30]} 10. Ne5 {[%emt 0:00:30]} c5 {[%emt 0:00:30]} 11. cxd5 {[%emt 0:00:30]} Nxd5 {[%emt 0:00:30]} 12. Nxd7 {[%emt 0:00:30]} Qxd7 {[%emt 0:00:30]} 13. Nc4 {[%emt 0:00:30]} f5 {[%emt 0:00:30]} 14. Nxd6 {[%emt 0:00:30]} Qxd6 {[%emt 0:00:30]} 15. dxc5 {[%emt 0:00:30]} Qxc5 {[%emt 0:00:30]} 16. Qf3 {[%emt 0:00:30]} Qe7 {[%emt 0:00:30]} 17. Qg3 {[%emt 0:00:30]} Rac8 {[%emt 0:00:30]} 18. Rad1 {[%emt 0:00:30]} Nf6 {[%emt 0:00:30]} 19. Bc4 {[%emt 0:00:30]} Rfd8 {[%emt 0:00:30]} 20. Rxd8+ {[%emt 0:00:30]} Rxd8 {[%emt 0:00:30]} 21. Bxf6 {[%emt 0:00:30]} Qxf6 {[%emt 0:00:30]} 22. Qc7 {[%emt 0:00:30]} Be4 {[%emt 0:00:30]} 23. f3 {[%emt 0:00:30]} Bd5 {[%emt 0:00:30]} 24. Rd1 {[%emt 0:00:30]} Qg5 {[%emt 0:00:30]} 25. e4 {[%emt 0:00:30]} fxe4 {[%emt 0:00:30]} 26. fxe4 {[%emt 0:00:30]} Re8 {[%emt 0:00:30]} 27. exd5 {[%emt 0:00:30]} exd5 {[%emt 0:00:30]} 28. Bxd5+ {[%emt 0:00:30]} Kh8 29. Qg3 {[%emt 0:00:30]} Qf5 {[%emt 0:01:00]} 30. Qf2 {[%emt 0:00:30]} Qe5 {[%emt 0:00:30]} 31. Bf3 {[%emt 0:00:30]} h6 {[%emt 0:00:30]} 32. h3 {[%emt 0:00:30]} a5 {[%emt 0:00:30]} 33. Qxb6 {[%emt 0:00:30]} 1-0